bitfinex-derivatives/quotes_BTCF0:USTF0_20251028
["timestamp","ask_amount","ask_price","bid_price","bid_amount"]
[1761669094143,0.3608,115360.0,115350.0,0.04584508]
[1761669094348,0.3608,115370.0,115350.0,0.28853513]
[1761669094544,0.3608,115370.0,115350.0,0.33178021]
[1761669094942,0.3608,115370.0,115360.0,0.48691038]
[1761669095139,0.3608,115370.0,115360.0,0.55422021]
[1761669095345,0.3608,115370.0,115360.0,0.5695733]
[1761669095647,0.3608,115370.0,115360.0,0.6562621]
[1761669096147,0.3608,115370.0,115360.0,0.5695733]
[1761669096351,0.3608,115380.0,115360.0,0.5695733]
[1761669096645,0.3608,115380.0,115370.0,0.04853503]
[1761669096852,0.3608,115380.0,115370.0,0.06739978]
[1761669097045,0.3608,115380.0,115370.0,0.33447016]
[1761669097246,0.3608,115410.0,115370.0,0.7972145]
[1761669097447,0.3608,115410.0,115390.0,0.26447038]
[1761669097646,0.3608,115410.0,115400.0,0.21976]
[1761669097949,0.3608,115410.0,115400.0,0.24122475]
[1761669098151,0.3608,115410.0,115400.0,0.50569513]
[1761669098443,0.3608,115420.0,115400.0,0.59235093]
[1761669098639,0.3608,115420.0,115410.0,0.26707038]
[1761669098837,0.3608,115420.0,115410.0,0.28853513]
[1761669099053,0.3608,115420.0,115410.0,0.02406475]
[1761669099345,0.3608,115420.0,115410.0,0.24122475]
[1761669099539,0.62787038,115420.0,115380.0,0.67120244]
[1761669099743,0.3608,115400.0,115390.0,0.2198]
[1761669099937,0.3608,115400.0,115390.0,0.50560092]
[1761669100142,0.3608,115400.0,115390.0,0.24113054]
[1761669100348,0.3608,115400.0,115390.0,0.24109054]
[1761669100349,0.7242,115400.0,115390.0,0.24109054]
[1761669100550,1.3216,115400.0,115390.0,0.02133054]
[1761669100752,1.3242,115400.0,115390.0,0.02133054]
[1761669101749,0.7442,115400.0,115370.0,0.04593206]
[1761669101940,0.3608,115390.0,115370.0,0.26447038]
[1761669102254,0.3608,115390.0,115380.0,0.04600529]
[1761669102551,0.3608,115390.0,115380.0,0.3130798]
[1761669102751,0.3608,115400.0,115380.0,0.84779038]
[1761669103051,0.3608,115410.0,115390.0,0.31307333]
[1761669103355,0.3608,115410.0,115400.0,0.21992]
[1761669103853,0.3608,115410.0,115400.0,0.26852295]
[1761669104043,0.3608,115410.0,115400.0,0.26592295]
[1761669104239,0.3608,115410.0,115400.0,0.21992]
[1761669104557,0.3608,115410.0,115400.0,0.26852295]
[1761669105056,0.3608,115410.0,115400.0,0.26844295]
[1761669105251,0.3608,115410.0,115400.0,0.22244]
[1761669105450,0.3608,115410.0,115390.0,0.04600295]
[1761669105648,0.3608,115400.0,115390.0,0.04600295]
[1761669105850,0.3634,115410.0,115390.0,0.26580295]
[1761669106152,0.3608,115400.0,115390.0,0.53027333]
[1761669106351,0.3608,115400.0,115390.0,0.26580295]
[1761669106555,0.3608,115410.0,115390.0,0.53027333]
[1761669107058,0.3608,115400.0,115390.0,0.26580295]
[1761669107249,0.3608,115400.0,115380.0,0.04600295]
[1761669107560,0.3608,115390.0,115380.0,0.26570523]
[1761669107944,0.3608,115390.0,115380.0,0.04598523]
[1761669108459,0.3608,115390.0,115370.0,0.04598523]
[1761669108460,0.84755038,115390.0,115370.0,0.04598523]
[1761669108756,0.3634,115380.0,115370.0,0.04598523]
[1761669108947,0.62787038,115380.0,115360.0,0.04598523]
[1761669109144,0.62787038,115380.0,115350.0,0.04598523]
[1761669109145,0.84759038,115370.0,115350.0,0.04598523]
[1761669109344,0.50679038,115370.0,115360.0,0.04598523]
[1761669109559,0.0026,115360.0,115340.0,0.06119817]
[1761669109744,0.94132,115350.0,115340.0,0.06119817]
[1761669109944,0.94392,115350.0,115340.0,0.06119817]
[1761669110659,0.7242,115350.0,115340.0,0.06119817]
[1761669110960,0.98867038,115350.0,115340.0,0.06119817]
[1761669111160,0.7242,115350.0,115340.0,0.06119817]
[1761669111751,0.7242,115350.0,115340.0,0.06419817]
[1761669111946,0.7216,115350.0,115340.0,0.06419817]
[1761669112459,0.7216,115350.0,115340.0,0.003]
[1761669112659,0.7216,115350.0,115340.0,0.06437311]
[1761669113662,0.98867038,115350.0,115340.0,0.06437311]
[1761669113972,1.00867038,115350.0,115340.0,0.003]
[1761669114155,0.98867038,115350.0,115340.0,0.04903697]
[1761669114355,1.58867038,115350.0,115340.0,0.04903697]
[1761669114553,0.98607038,115350.0,115340.0,0.04903697]
[1761669114855,0.98867038,115350.0,115340.0,0.003]
[1761669115548,1.00867038,115350.0,115340.0,0.003]
[1761669115753,1.03867038,115350.0,115340.0,0.003]
[1761669115955,1.20815038,115350.0,115330.0,0.0043352]
[1761669116150,0.3608,115340.0,115330.0,0.0043352]
[1761669116873,0.62527038,115340.0,115330.0,0.0043352]
[1761669117057,0.64787038,115340.0,115330.0,0.0043352]
[1761669117259,0.62787038,115340.0,115330.0,0.0043352]
[1761669117763,0.3634,115340.0,115330.0,0.0043352]
[1761669117965,0.92787038,115340.0,115330.0,0.0043352]
[1761669118265,0.92787038,115340.0,115310.0,0.03078829]
[1761669118266,1.54787038,115340.0,115310.0,7.677e-05]
[1761669118460,0.98607038,115320.0,115310.0,7.677e-05]
[1761669118762,0.56447038,115320.0,115290.0,0.0043367]
[1761669119065,0.26447038,115300.0,115290.0,0.0017367]
[1761669119262,0.21964,115300.0,115290.0,0.0017367]
[1761669119559,1.19994537,115300.0,115290.0,0.0017367]
[1761669119967,1.89181575,115300.0,115280.0,0.03071152]
[1761669120161,1.89181575,115300.0,115250.0,0.08254223]
[1761669120162,0.3608,115280.0,115250.0,0.08111701]
[1761669120467,8.993e-05,115270.0,115250.0,0.00433821]
[1761669120968,0.3608,115260.0,115250.0,0.00693821]
[1761669121155,0.38020993,115270.0,115260.0,0.0026]
[1761669121156,0.36088993,115270.0,115260.0,0.0026]
[1761669121874,0.36088993,115270.0,115260.0,0.26967038]
[1761669122163,0.35828993,115290.0,115260.0,1.31203398]
[1761669122360,0.3608,115300.0,115280.0,0.26447038]
[1761669122555,0.3608,115300.0,115290.0,0.26447038]
[1761669122755,0.3608,115310.0,115290.0,0.26707038]
[1761669122970,0.3608,115310.0,115300.0,0.0026]
[1761669123272,0.3608,115320.0,115300.0,0.26447038]
[1761669123570,0.3608,115330.0,115310.0,0.26707038]
[1761669123863,0.3608,115320.0,115300.0,0.03071152]
[1761669124060,0.00251007,115310.0,115290.0,0.6559819]
[1761669124457,0.3608,115320.0,115300.0,0.62787038]
[1761669124662,0.3608,115330.0,115310.0,0.26447038]
[1761669125057,0.3608,115320.0,115290.0,0.39151152]
[1761669125262,0.3608,115320.0,115300.0,0.26707038]
[1761669125768,0.3608,115310.0,115280.0,0.70204918]
[1761669125959,0.36331007,115320.0,115280.0,0.70204918]
[1761669126277,0.00251007,115300.0,115280.0,0.6559819]
[1761669126571,0.36331007,115300.0,115290.0,0.003]
[1761669126764,0.3634,115300.0,115270.0,0.03071152]
[1761669127073,0.36331007,115280.0,115270.0,0.03071152]
[1761669127270,0.36331007,115280.0,115260.0,0.03071152]
[1761669127566,0.36331007,115270.0,115260.0,0.03071152]
[1761669128857,0.36591007,115270.0,115260.0,0.03071152]
[1761669129062,0.63038045,115270.0,115250.0,0.03504973]
[1761669129362,0.36331007,115260.0,115250.0,0.03504973]
[1761669129565,0.3608,115270.0,115250.0,0.31487587]
[1761669129771,0.36331007,115270.0,115260.0,0.03055343]
[1761669129970,0.3608,115270.0,115260.0,0.03055343]
[1761669130163,0.36331007,115270.0,115260.0,0.03055343]
[1761669130468,0.3608,115280.0,115260.0,0.34409109]
[1761669130970,0.3608,115280.0,115270.0,0.0026]
[1761669131168,0.3608,115280.0,115270.0,0.26707038]
[1761669131570,0.36331007,115280.0,115260.0,0.26747038]
[1761669131882,0.00251007,115270.0,115260.0,0.003]
[1761669133275,0.3608,115280.0,115260.0,0.35423318]
[1761669133466,0.3608,115290.0,115270.0,0.26707038]
[1761669133662,0.3608,115290.0,115280.0,0.26447038]
[1761669133862,0.3608,115290.0,115280.0,0.26707038]
[1761669134061,0.3608,115290.0,115280.0,0.26447038]
[1761669134260,0.3608,115300.0,115270.0,0.3608]
[1761669134476,0.00251007,115290.0,115270.0,0.62527038]
[1761669134672,0.00251007,115280.0,115270.0,0.62527038]
[1761669134966,0.00251007,115290.0,115270.0,0.71202628]
[1761669135166,0.00251007,115280.0,115270.0,0.62527038]
[1761669135372,0.00251007,115280.0,115270.0,0.03055343]
[1761669135566,0.36331007,115280.0,115260.0,0.07662071]
[1761669135762,0.00251007,115270.0,115260.0,0.03055343]
[1761669136359,0.00251007,115270.0,115260.0,0.07662071]
[1761669136575,0.36331007,115270.0,115260.0,0.03055343]
[1761669136760,0.00251007,115270.0,115260.0,0.07762071]
[1761669136959,0.00251007,115270.0,115260.0,0.34209109]
[1761669137160,0.00251007,115270.0,115260.0,0.31153766]
[1761669138073,0.00251007,115270.0,115260.0,0.04706728]
[1761669138468,0.00251007,115270.0,115260.0,0.05106728]
[1761669138667,0.36331007,115270.0,115260.0,0.05106728]
[1761669138869,0.36331007,115270.0,115260.0,0.03567275]
[1761669139968,0.36331007,115270.0,115260.0,0.05868885]
[1761669140176,0.36331007,115270.0,115260.0,0.0280161]
[1761669140364,0.36331007,115270.0,115260.0,0.05868885]
[1761669140560,0.3608,115270.0,115260.0,0.32315923]
[1761669140760,0.3608,115280.0,115260.0,0.43557281]
[1761669140966,0.3608,115300.0,115270.0,0.74529733]
[1761669141168,0.3608,115300.0,115280.0,0.31816032]
[1761669141472,0.00251007,115290.0,115280.0,0.02301719]
[1761669141676,0.00251007,115290.0,115280.0,0.28748757]
[1761669141861,0.00251007,115290.0,115280.0,0.02301719]
[1761669141862,0.36331007,115290.0,115280.0,0.02301719]
[1761669142565,0.36331007,115290.0,115270.0,0.65594313]
[1761669142768,0.3608,115290.0,115280.0,0.005]
[1761669142968,0.3608,115290.0,115280.0,0.02804185]
[1761669143170,0.36331007,115290.0,115280.0,0.02804185]
[1761669143371,0.36591007,115290.0,115280.0,0.02804185]
[1761669144267,0.96591007,115290.0,115280.0,0.02804185]
[1761669144866,0.36331007,115290.0,115280.0,0.31818498]
[1761669145068,0.3608,115290.0,115280.0,0.31053766]
[1761669145263,0.36331007,115290.0,115280.0,0.31053766]
[1761669145570,0.3608,115290.0,115280.0,0.31353766]
[1761669145770,0.3608,115290.0,115280.0,0.04906728]
[1761669145976,0.3608,115290.0,115280.0,0.04706728]
[1761669146175,0.36331007,115290.0,115280.0,0.04706728]
[1761669146680,0.00251007,115290.0,115280.0,0.04906728]
[1761669146896,0.3608,115320.0,115280.0,0.49661558]
[1761669147172,0.3608,115320.0,115300.0,0.05393206]
[1761669147476,0.36331007,115310.0,115300.0,0.05393206]
[1761669147785,0.3608,115310.0,115300.0,0.05393206]
[1761669147962,0.36331007,115310.0,115300.0,0.05393206]
[1761669148274,0.36331007,115310.0,115300.0,0.24241206]
[1761669148665,0.36331007,115310.0,115300.0,0.21929832]
[1761669148867,0.36331007,115310.0,115300.0,0.22429832]
[1761669150073,0.36331007,115310.0,115300.0,0.23954728]
[1761669150374,0.36331007,115310.0,115300.0,0.19348]
[1761669150578,0.36591007,115310.0,115300.0,0.23957906]
[1761669150877,0.36591007,115310.0,115300.0,0.05121906]
[1761669151069,0.36331007,115310.0,115300.0,0.08203295]
[1761669151265,0.36331007,115310.0,115300.0,0.05121906]
[1761669151872,0.36331007,115310.0,115300.0,0.04921906]
[1761669152474,0.36331007,115310.0,115300.0,0.04721906]
[1761669152876,0.36591007,115310.0,115300.0,0.04721906]
[1761669153273,0.3634,115310.0,115300.0,0.02162412]
[1761669153679,0.3634,115310.0,115280.0,0.07705829]
[1761669153980,0.7216,115290.0,115280.0,0.03083923]
[1761669154184,0.91004,115290.0,115280.0,0.03083923]
[1761669154377,0.91264,115290.0,115270.0,0.03083923]
[1761669154680,0.3634,115280.0,115270.0,0.03083923]
[1761669154877,0.3608,115280.0,115270.0,0.04621906]
[1761669155377,0.71562691,115280.0,115270.0,0.04621906]
[1761669155581,0.71822691,115280.0,115270.0,0.0318702]
[1761669155880,0.71822691,115280.0,115270.0,0.07808926]
[1761669156276,0.71822691,115280.0,115270.0,0.0338702]
[1761669156982,1.31822691,115280.0,115270.0,0.0338702]
[1761669157169,1.31822691,115280.0,115270.0,0.003]
[1761669157170,0.71822691,115280.0,115270.0,0.003]
[1761669157367,0.71822691,115280.0,115250.0,0.08142747]
[1761669157674,1.07642691,115260.0,115250.0,0.03520841]
[1761669157981,1.26478691,115260.0,115250.0,0.03520841]
[1761669158182,1.86738691,115260.0,115250.0,0.00433821]
[1761669158984,1.86738691,115260.0,115250.0,0.01133821]
[1761669159781,1.86838691,115260.0,115250.0,0.00433821]
[1761669160381,1.68002691,115260.0,115250.0,0.00433821]
[1761669160580,1.68002691,115260.0,115250.0,0.00693821]
[1761669160581,0.7226,115260.0,115250.0,0.00693821]
[1761669160777,0.91084,115260.0,115250.0,0.00693821]
[1761669161283,0.7216,115260.0,115250.0,0.00693821]
[1761669161586,0.7276,115260.0,115250.0,0.03780841]
[1761669161781,0.7276,115260.0,115250.0,0.04040841]
[1761669161975,0.7236,115260.0,115250.0,0.03780841]
[1761669162171,0.7236,115260.0,115250.0,0.00433821]
[1761669162377,0.7262,115260.0,115250.0,0.00433821]
[1761669162577,0.7216,115260.0,115250.0,0.00693821]
[1761669162777,0.7216,115260.0,115250.0,0.03780841]
[1761669164980,0.7236,115260.0,115250.0,0.03780841]
[1761669165381,0.7216,115260.0,115250.0,0.03780841]
[1761669168994,0.7216,115260.0,115250.0,0.00433821]
[1761669169290,0.7216,115260.0,115250.0,0.00693821]
[1761669169489,0.7216,115260.0,115250.0,0.00433821]
[1761669169691,0.7216,115260.0,115250.0,0.00693821]
[1761669170193,0.7216,115260.0,115250.0,0.00433821]
[1761669170585,0.7216,115260.0,115250.0,0.00693821]
[1761669170995,0.7216,115260.0,115250.0,0.00433821]
[1761669171385,0.7216,115260.0,115250.0,0.00693821]
[1761669171585,0.7236,115260.0,115250.0,0.00433821]
[1761669171791,1.26638691,115260.0,115250.0,0.00693821]
[1761669171991,1.26638691,115260.0,115250.0,0.00433821]
[1761669172293,1.26838691,115260.0,115250.0,0.00693821]
[1761669172491,1.27098691,115260.0,115250.0,0.00433821]
[1761669172689,1.26838691,115260.0,115250.0,0.00433821]
[1761669173088,1.27098691,115260.0,115250.0,0.00433821]
[1761669175193,1.26838691,115260.0,115250.0,0.00433821]
[1761669175394,1.27098691,115260.0,115250.0,0.00433821]
[1761669176400,1.87098691,115260.0,115250.0,0.00433821]
[1761669176601,1.27098691,115260.0,115250.0,0.00433821]
[1761669177092,0.35482691,115240.0,115230.0,0.00156812]
[1761669177291,1.26410691,115240.0,115230.0,0.00156812]
[1761669177491,1.26670691,115240.0,115230.0,0.00156812]
[1761669177691,1.26410691,115240.0,115230.0,0.00156812]
[1761669177892,1.26670691,115240.0,115230.0,0.00156812]
[1761669178088,1.26410691,115240.0,115230.0,0.00156812]
[1761669178503,1.26410691,115240.0,115230.0,0.00416812]
[1761669179597,1.07642691,115240.0,115230.0,0.00616812]
[1761669179796,1.26402691,115240.0,115230.0,0.00616812]
[1761669180388,0.7216,115240.0,115230.0,0.00416812]
[1761669180586,0.7256,115240.0,115230.0,0.00676812]
[1761669180798,0.3648,115240.0,115230.0,0.12442422]
[1761669180997,0.004,115240.0,115230.0,0.09355402]
[1761669181301,0.0014,115240.0,115230.0,0.48262422]
[1761669181497,5.515e-05,115240.0,115230.0,1.08262422]
[1761669181687,0.3608,115270.0,115240.0,0.086773]
[1761669181891,0.3608,115260.0,115250.0,0.21842352]
[1761669182087,0.3608,115260.0,115250.0,0.1876]
[1761669182303,0.3608,115260.0,115250.0,0.21842352]
[1761669182901,0.3608,115260.0,115250.0,0.26725881]
[1761669183102,0.3608,115270.0,115250.0,0.26725881]
[1761669183298,0.38410015,115300.0,115260.0,0.79528572]
[1761669183501,0.39182303,115310.0,115280.0,0.83319863]
[1761669183502,0.3608,115310.0,115280.0,0.83319863]
[1761669183699,0.3608,115310.0,115290.0,0.54844]
[1761669184007,0.3608,115300.0,115280.0,0.03342352]
[1761669184298,0.3608,115300.0,115270.0,0.7618622]
[1761669184299,0.3608,115290.0,115270.0,0.03082352]
[1761669184492,0.3608,115290.0,115270.0,0.18768]
[1761669184688,0.3608,115290.0,115280.0,0.0026]
[1761669184890,0.3608,115300.0,115280.0,0.0026]
[1761669185092,0.3608,115290.0,115280.0,0.0026]
[1761669185290,0.3608,115290.0,115270.0,1.06712042]
[1761669185291,0.3608,115290.0,115270.0,0.03082352]
[1761669185492,0.3608,115280.0,115260.0,0.07705881]
[1761669185711,0.3608,115270.0,115250.0,0.26481881]
[1761669185903,0.3608,115260.0,115250.0,0.07705881]
[1761669186104,0.3608,115260.0,115250.0,0.03082352]
[1761669186700,0.3608,115260.0,115250.0,0.63082352]
[1761669186902,0.3608,115260.0,115250.0,0.07965881]
[1761669187999,0.3608,115260.0,115250.0,0.03342352]
[1761669188196,0.3608,115260.0,115250.0,0.07965881]
[1761669188405,0.3608,115260.0,115250.0,0.08265881]
[1761669188806,0.3608,115260.0,115250.0,0.03642352]
[1761669189007,0.3608,115270.0,115250.0,0.03642352]
[1761669189208,0.3608,115270.0,115260.0,0.0026]
[1761669189506,0.3608,115270.0,115250.0,0.08005881]
[1761669189701,0.3608,115270.0,115250.0,0.03382352]
[1761669190309,0.3608,115260.0,115250.0,0.03382352]
[1761669190704,0.3608,115270.0,115250.0,0.47802103]
[1761669190900,0.3608,115270.0,115260.0,0.54502691]
[1761669191099,0.3608,115270.0,115260.0,0.66261353]
[1761669191311,0.3608,115290.0,115280.0,0.086748]
[1761669191606,0.3608,115290.0,115280.0,0.63181491]
[1761669191811,0.3608,115300.0,115280.0,1.23181491]
[1761669191999,0.3608,115300.0,115290.0,0.0026]
[1761669192307,0.3608,115300.0,115280.0,0.19024]
[1761669192506,0.3608,115300.0,115280.0,0.2743873]
[1761669192809,0.3608,115310.0,115280.0,0.6351873]
[1761669193706,0.3608,115300.0,115280.0,0.2743873]
[1761669194209,0.37295,115310.0,115280.0,0.6351873]
[1761669194910,0.37295,115310.0,115280.0,0.6351835]
[1761669195096,0.37295,115310.0,115280.0,0.2743835]
[1761669195299,0.37295,115310.0,115280.0,0.274387]
[1761669195300,0.3608,115300.0,115280.0,0.274387]
[1761669195509,0.3608,115300.0,115270.0,0.47841154]
[1761669195706,0.3608,115300.0,115290.0,0.18748]
[1761669196807,0.37295,115310.0,115290.0,0.21834044]
[1761669197011,0.3608,115300.0,115290.0,0.18748]
[1761669198010,0.3608,115300.0,115280.0,0.03086044]
[1761669198202,0.3608,115290.0,115280.0,0.03086044]
[1761669198404,0.3608,115290.0,115270.0,0.21826044]
[1761669198614,0.3608,115280.0,115270.0,0.21826044]
[1761669200905,0.3608,115290.0,115270.0,0.21826044]
[1761669201100,0.3608,115280.0,115270.0,0.26449573]
[1761669201809,0.3608,115280.0,115270.0,0.03086044]
[1761669202012,0.3608,115280.0,115260.0,0.04623529]
[1761669202013,0.3608,115280.0,115260.0,0.19138044]
[1761669202315,0.3608,115270.0,115250.0,0.03086044]
[1761669202615,0.3608,115260.0,115250.0,0.03086044]
[1761669204320,0.3634,115260.0,115250.0,0.03086044]
[1761669204614,0.3608,115260.0,115250.0,0.03086044]
[1761669205106,0.52124,115260.0,115250.0,0.03386044]
[1761669205811,0.52124,115260.0,115250.0,0.003]
[1761669206014,0.90866691,115260.0,115250.0,0.003]
[1761669206322,0.88866691,115260.0,115250.0,0.003]
[1761669206506,0.87866691,115260.0,115250.0,0.003]
[1761669206702,0.92866691,115260.0,115250.0,0.003]
[1761669206933,1.05866691,115260.0,115230.0,0.00156812]
[1761669207214,1.07642691,115240.0,115230.0,0.00156812]
[1761669207417,1.23686691,115240.0,115230.0,0.00156812]
[1761669207711,1.14703712,115240.0,115230.0,0.00156812]
[1761669208207,1.14703712,115240.0,115230.0,0.00456812]
[1761669208612,1.15918712,115240.0,115230.0,0.00456812]
[1761669209111,1.17918712,115240.0,115230.0,0.00456812]
[1761669209318,1.75918712,115240.0,115230.0,0.00456812]
[1761669209508,1.76178712,115240.0,115230.0,0.00456812]
[1761669210216,1.78178712,115240.0,115230.0,0.00156812]
[1761669210410,1.78178712,115240.0,115230.0,0.00656812]
[1761669210611,1.76178712,115240.0,115230.0,0.00656812]
[1761669210812,1.78178712,115240.0,115230.0,0.00656812]
[1761669211119,1.76178712,115240.0,115230.0,0.00656812]
[1761669211313,1.76178712,115240.0,115230.0,0.00456812]
[1761669211514,1.78178712,115240.0,115230.0,0.00456812]
[1761669211910,1.76178712,115240.0,115230.0,0.00456812]
[1761669212416,1.78178712,115240.0,115230.0,0.00456812]
[1761669212619,1.76178712,115240.0,115230.0,0.00456812]
[1761669212920,2.14178712,115240.0,115210.0,0.03520015]
[1761669213108,0.98659712,115220.0,115210.0,0.00433971]
[1761669213308,1.23695712,115220.0,115200.0,0.03086044]
[1761669213509,1.23695712,115220.0,115190.0,0.04623529]
[1761669213510,0.62839712,115210.0,115190.0,0.07709573]
[1761669213722,0.78619712,115200.0,115190.0,0.07709573]
[1761669213908,0.78626271,115200.0,115190.0,0.07709573]
[1761669214219,0.78626271,115200.0,115190.0,0.07706646]
[1761669214611,0.62586271,115200.0,115190.0,0.07706646]
[1761669214819,0.78642271,115200.0,115190.0,0.07806646]
[1761669215319,0.62586271,115200.0,115190.0,0.03183117]
[1761669215516,0.78898271,115200.0,115190.0,0.03183117]
[1761669215713,0.80898271,115200.0,115190.0,0.03183117]
[1761669215913,1.05397983,115200.0,115190.0,0.03383117]
[1761669216113,1.10397983,115200.0,115190.0,0.03383117]
[1761669216510,0.83898271,115200.0,115190.0,0.03383117]
[1761669216914,0.83898271,115200.0,115190.0,0.003]
[1761669217225,1.11397983,115200.0,115170.0,0.00434122]
[1761669217527,0.98659712,115180.0,115170.0,0.00434122]
[1761669217832,1.14721414,115180.0,115170.0,0.00434122]
[1761669218621,1.14981414,115180.0,115170.0,0.00434122]
[1761669218816,0.88481702,115180.0,115170.0,0.00534122]
[1761669219011,1.14721414,115180.0,115170.0,0.00534122]
[1761669219914,0.88213702,115180.0,115170.0,0.00534122]
[1761669220923,0.88213702,115180.0,115170.0,0.00734122]
[1761669221725,0.72169702,115180.0,115170.0,0.00734122]
[1761669221937,0.88205702,115180.0,115170.0,0.00734122]
[1761669222224,0.72169702,115180.0,115170.0,0.00734122]
[1761669222417,0.88205702,115180.0,115170.0,0.00734122]
[1761669223426,0.72169702,115180.0,115170.0,0.00734122]
[1761669223825,0.88201702,115180.0,115170.0,0.00734122]
[1761669224028,0.72169702,115180.0,115170.0,0.00734122]
[1761669224326,0.88201702,115180.0,115170.0,0.00734122]
[1761669224723,0.72169702,115180.0,115170.0,0.00734122]
[1761669224919,1.14697414,115180.0,115170.0,0.00734122]
[1761669225720,1.14697414,115180.0,115170.0,0.02002918]
[1761669226226,0.88197702,115180.0,115170.0,0.02002918]
[1761669226426,1.14697414,115180.0,115170.0,0.02002918]
[1761669227134,1.14697414,115180.0,115170.0,0.00734122]
[1761669227836,0.72169702,115180.0,115170.0,0.00734122]
[1761669228134,1.14689414,115180.0,115170.0,0.00734122]
[1761669228327,0.88189702,115180.0,115170.0,0.00734122]
[1761669228530,1.14689414,115180.0,115170.0,0.00734122]
[1761669228932,1.14949414,115180.0,115170.0,0.00734122]
[1761669229730,1.14949414,115180.0,115170.0,0.02005159]
[1761669230535,1.16949414,115180.0,115170.0,0.02005159]
[1761669230740,1.14949414,115180.0,115170.0,0.02005159]
[1761669231243,1.16626647,115180.0,115170.0,0.01705159]
[1761669231537,1.18626647,115180.0,115170.0,0.01705159]
[1761669231938,1.16626647,115180.0,115170.0,0.01705159]
[1761669232138,0.90126935,115180.0,115170.0,0.01705159]
[1761669232332,1.18626647,115180.0,115170.0,0.01705159]
[1761669232537,1.16366647,115180.0,115170.0,0.01705159]
[1761669233042,1.1634204,115180.0,115170.0,0.01705159]
[1761669233340,1.0033004,115180.0,115170.0,0.01705159]
[1761669233530,1.1633804,115180.0,115170.0,0.01705159]
[1761669233932,1.15477414,115180.0,115170.0,0.01705159]
[1761669234842,1.14677414,115180.0,115170.0,0.01705159]
[1761669235041,1.15277414,115180.0,115170.0,0.01705159]
[1761669235243,0.89037702,115180.0,115170.0,0.01705159]
[1761669235430,1.15277414,115180.0,115170.0,0.01705159]
[1761669235742,0.72769702,115180.0,115170.0,0.01705159]
[1761669235939,0.72769702,115180.0,115170.0,0.00694122]
[1761669236337,0.72769702,115180.0,115170.0,0.00434122]
[1761669236642,0.72769702,115180.0,115170.0,0.00694122]
[1761669237042,0.00609702,115180.0,115170.0,0.35876884]
[1761669237339,0.00609702,115180.0,115170.0,0.27193834]
[1761669237539,0.36689702,115180.0,115170.0,0.00694122]
[1761669237736,9.702e-05,115180.0,115170.0,0.00694122]
[1761669237939,9.702e-05,115180.0,115170.0,0.35616924]
[1761669238138,9.702e-05,115180.0,115170.0,1.31956924]
[1761669238345,0.3608,115200.0,115190.0,0.0868158]
[1761669238537,0.3608,115200.0,115190.0,0.35181292]
[1761669238737,0.3608,115200.0,115190.0,0.86759712]
[1761669240544,0.3608,115210.0,115190.0,0.86759712]
[1761669240845,0.001,115200.0,115180.0,0.5601992]
[1761669241057,0.3618,115200.0,115180.0,0.3608]
[1761669241240,0.3608,115190.0,115180.0,0.15996]
[1761669241439,0.3618,115200.0,115180.0,0.15996]
[1761669241642,0.001,115200.0,115190.0,0.0026]
[1761669241839,0.3618,115200.0,115180.0,0.42495712]
[1761669242037,0.3618,115200.0,115180.0,0.15996]
[1761669242241,0.3618,115200.0,115190.0,0.0026]
[1761669242649,0.3608,115200.0,115190.0,0.0026]
[1761669243246,0.3618,115210.0,115190.0,0.0026]
[1761669243448,0.3608,115210.0,115200.0,0.0026]
[1761669243843,0.3608,115210.0,115200.0,0.26759712]
[1761669244056,0.3608,115220.0,115200.0,1.11432522]
[1761669244252,0.38410015,115230.0,115210.0,0.0026]
[1761669244456,0.3608,115220.0,115210.0,0.0026]
[1761669244751,0.38410015,115230.0,115220.0,0.0026]
[1761669244958,0.38410015,115230.0,115210.0,0.0026]
[1761669245147,0.3608,115220.0,115210.0,0.0026]
[1761669245451,0.001,115210.0,115200.0,0.42491712]
[1761669245637,0.001,115210.0,115200.0,0.15992]
[1761669246148,0.3608,115220.0,115200.0,1.02751712]
[1761669246351,0.3638,115220.0,115200.0,0.42751712]
[1761669246655,0.3638,115220.0,115210.0,0.0026]
[1761669246837,0.3608,115220.0,115210.0,0.0026]
[1761669247042,0.3608,115220.0,115210.0,0.6026]
[1761669247646,0.3618,115220.0,115210.0,0.0026]
[1761669248650,0.001,115220.0,115210.0,0.26759712]
[1761669248849,0.001,115220.0,115210.0,0.0026]
[1761669249049,0.001,115220.0,115210.0,0.26759712]
[1761669249448,0.001,115220.0,115210.0,0.35439782]
[1761669250249,0.001,115220.0,115210.0,0.71519782]
[1761669250544,0.37295,115240.0,115220.0,0.0867931]
[1761669250750,0.37295,115240.0,115230.0,0.42475712]
[1761669250951,0.37295,115240.0,115230.0,0.42735712]
[1761669251148,0.01215,115240.0,115230.0,0.42735712]
[1761669252660,0.01215,115240.0,115230.0,0.54503239]
[1761669252848,0.01215,115240.0,115230.0,0.90583239]
[1761669253749,0.01315,115240.0,115230.0,0.90583239]
[1761669253951,0.01315,115240.0,115230.0,0.91457632]
[1761669254150,0.01215,115240.0,115230.0,0.9634]
[1761669254351,0.01215,115240.0,115230.0,0.52704]
[1761669254551,0.01215,115240.0,115230.0,0.52444]
[1761669254945,0.01215,115240.0,115230.0,0.52704]
[1761669255141,0.01215,115240.0,115230.0,0.52444]
[1761669255354,0.37295,115240.0,115230.0,0.16364]
[1761669255542,0.01215,115240.0,115230.0,0.16624]
[1761669255747,0.01215,115240.0,115230.0,0.16364]
[1761669255947,0.37395,115240.0,115220.0,0.03088967]
[1761669256142,0.37395,115240.0,115230.0,0.1596]
[1761669256553,0.37295,115240.0,115230.0,0.1596]
[1761669256950,0.37295,115240.0,115230.0,0.1622]
[1761669257154,0.37295,115240.0,115230.0,0.15956]
[1761669257352,0.37595,115240.0,115230.0,0.16156]
[1761669259462,0.37395,115240.0,115230.0,0.15956]
[1761669262049,0.63894712,115240.0,115230.0,0.15956]
[1761669262549,0.37395,115240.0,115230.0,0.15956]
[1761669263751,0.37395,115240.0,115230.0,0.16216]
[1761669264458,0.37395,115240.0,115230.0,0.15956]
[1761669264766,0.37395,115240.0,115210.0,0.29588679]
[1761669264956,0.3608,115230.0,115220.0,0.1594]
[1761669265148,0.62579712,115230.0,115210.0,0.03088967]
[1761669265346,0.62579712,115220.0,115210.0,0.03088967]
[1761669265556,0.62579712,115220.0,115200.0,0.19032967]
[1761669265557,0.3608,115220.0,115200.0,0.19032967]
[1761669265759,0.3608,115210.0,115200.0,0.19032967]
[1761669266861,0.3608,115210.0,115200.0,0.23916496]
[1761669267062,0.3618,115210.0,115200.0,0.19032967]
[1761669267261,0.3618,115210.0,115200.0,0.20567529]